bitfinex/quotes_SOLUSD_20241020
["timestamp","ask_amount","ask_price","bid_price","bid_amount"]
[1729441412469,23.776884,159.68,159.57,20.0]
[1729441412673,23.776884,159.68,159.57,20.1]
[1729441413866,23.776884,159.68,159.57,20.0]
[1729441414066,23.776884,159.68,159.57,20.1]
[1729441418492,23.776884,159.7,159.57,20.2]
[1729441418693,23.776884,159.7,159.58,0.1]
[1729441420505,23.776884,159.7,159.6,20.0]
[1729441431119,23.776884,159.71,159.6,20.1]
[1729441432109,23.776884,159.72,159.6,20.1]
[1729441435403,30.037784,159.72,159.6,20.1]
[1729441440527,23.776884,159.72,159.6,20.1]
[1729441440816,15.1559,159.73,159.64,20.0]
[1729441441003,23.776884,159.74,159.64,20.0]
[1729441441194,6.2601,159.75,159.64,20.0]
[1729441441901,6.2602,159.74,159.64,20.0]
[1729441442100,15.6484,159.76,159.64,20.0]
[1729441442303,23.776884,159.75,159.64,20.0]
[1729441442494,6.2612,159.72,159.64,20.0]
[1729441442709,6.2612,159.72,159.63,22.6033]
[1729441442916,23.776884,159.71,159.63,22.6033]
[1729441444832,30.038484,159.71,159.63,22.6033]
[1729441450815,23.776884,159.71,159.63,22.6033]
[1729441451717,6.2622,159.69,159.59,10.02801891]
[1729441451912,23.776884,159.68,159.59,10.02801891]
[1729441453922,23.776884,159.68,159.6,20.0]
[1729441454126,23.776884,159.68,159.59,10.02801891]
[1729441454513,23.776884,159.68,159.58,22.7724]
[1729441455415,23.776884,159.65,159.58,22.7724]
[1729441456414,23.776884,159.66,159.55,20.0]
[1729441456623,23.776884,159.66,159.54,22.7724]
[1729441456814,23.776884,159.64,159.54,22.7724]
[1729441457134,30.039384,159.68,159.54,31.80563172]
[1729441457432,30.039384,159.68,159.55,8.83323172]
[1729441458340,30.039384,159.68,159.56,20.0]
[1729441462709,23.776884,159.68,159.58,20.0]
[1729441480583,6.2614,159.71,159.58,20.1]
[1729441480864,23.776884,159.7,159.58,20.2]
[1729441482468,23.776884,159.7,159.58,20.1]
[1729441482758,23.776884,159.7,159.58,20.2]
[1729441483541,23.776884,159.7,159.58,20.1]
[1729441484457,23.776884,159.7,159.58,20.2]
[1729441485459,23.776884,159.7,159.58,20.1]
[1729441485657,23.776884,159.7,159.58,20.2]
[1729441486560,30.038084,159.72,159.6,35.6709]
[1729441486773,23.776884,159.72,159.6,35.6709]
[1729441486970,31.59213096,159.72,159.6,35.6709]
[1729441487266,6.263,159.67,159.59,6.4714]
[1729441488955,24.41954696,159.7,159.59,6.4714]
[1729441489154,6.2625,159.68,159.59,6.4714]
[1729441489359,23.776884,159.67,159.59,6.4714]
[1729441499972,23.776884,159.64,159.56,15.6709]
[1729441501847,6.263,159.67,159.56,15.6709]
[1729441502172,23.776884,159.66,159.56,15.6709]
[1729441508651,6.2633,159.66,159.56,15.6709]
[1729441515571,6.2633,159.66,159.57,20.0]
[1729441517973,30.039884,159.67,159.57,20.0]
[1729441518479,16.6043,159.7,159.59,20.0]
[1729441518664,6.2616,159.71,159.6,15.4183]
[1729441519960,6.2609,159.72,159.61,20.0]
[1729441520159,6.2609,159.72,159.62,6.6329]
[1729441520366,6.2606,159.73,159.62,6.6329]
[1729441521262,23.776884,159.72,159.62,6.6329]
[1729441521463,30.037784,159.72,159.62,6.6329]
[1729441531289,23.776884,159.72,159.62,6.6329]
[1729441531491,6.2622,159.69,159.62,6.6329]
[1729441531790,6.2618,159.7,159.62,6.6329]
[1729441563200,6.2613,159.71,159.62,6.6329]
[1729441563510,23.776884,159.72,159.62,6.6329]
[1729441563682,23.776884,159.72,159.63,15.531]
[1729441563891,6.2599,159.75,159.63,15.531]
[1729441564090,14.08018676,159.75,159.64,6.3042]
[1729441564500,6.2599,159.75,159.64,6.3042]
[1729441566111,23.776884,159.74,159.64,6.3042]
[1729441568497,23.776884,159.74,159.65,20.0]
[1729441570803,6.2599,159.75,159.65,20.0]
[1729441571507,23.776884,159.76,159.65,20.0]
[1729441571716,30.036284,159.76,159.65,20.0]
[1729441571938,20.54857729,159.77,159.66,15.531]
[1729441572211,20.54857729,159.77,159.68,6.3042]
[1729441572391,6.47616881,159.77,159.68,6.3042]
[1729441572593,6.47616881,159.77,159.69,15.531]
[1729441572813,7.81340848,159.8,159.69,15.531]
[1729441573010,6.2583,159.79,159.69,15.531]
[1729441573819,23.776884,159.78,159.69,15.531]
[1729441575209,6.259,159.77,159.69,15.531]
[1729441576413,30.035584,159.78,159.69,15.531]
[1729441602925,23.776884,159.76,159.69,15.531]
[1729441604042,6.2593,159.77,159.69,15.531]
[1729441604243,30.035384,159.79,159.69,15.531]
[1729441605745,23.776884,159.79,159.7,20.0]
[1729441608130,13.24062598,159.81,159.71,22.3904]
[1729441608332,23.776884,159.81,159.71,22.3904]
[1729441609433,23.776884,159.82,159.71,22.3904]
[1729441609735,23.776884,159.8,159.67,22.3904]
[1729441609929,44.563384,159.78,159.67,22.3904]
[1729441610129,6.2605,159.74,159.67,22.3904]
[1729441611136,23.776884,159.75,159.67,22.3904]
[1729441615434,30.036684,159.75,159.67,22.3904]
[1729441620040,6.2588,159.78,159.67,22.3904]
[1729441621457,6.259,159.77,159.67,22.3904]
[1729441622037,30.036284,159.76,159.67,22.3904]
[1729441622357,6.2598,159.75,159.67,22.3904]
[1729441622737,23.776884,159.75,159.67,22.3904]
[1729441626346,23.776884,159.76,159.67,22.3904]
[1729441626541,30.035484,159.78,159.67,22.3904]
[1729441627061,6.2586,159.78,159.68,20.0]
[1729441628258,23.776884,159.77,159.68,20.0]
[1729441629465,23.776884,159.78,159.68,20.0]
[1729441629761,13.48447568,159.8,159.69,22.6394]
[1729441629951,13.48447568,159.8,159.7,20.0]
[1729441636856,19.74237568,159.8,159.7,20.0]
[1729441637450,30.035084,159.79,159.7,20.0]
[1729441637776,6.2587,159.78,159.69,22.6394]
[1729441638475,6.2591,159.77,159.69,22.6394]
[1729441642950,6.2586,159.78,159.69,22.6394]
[1729441643156,23.776884,159.77,159.69,22.6394]
[1729441645351,19.95227328,159.8,159.69,22.6394]
[1729441645553,13.48447568,159.8,159.69,22.6394]
[1729441646574,19.74257568,159.8,159.69,22.6394]
[1729441646877,30.035384,159.79,159.69,22.6394]
[1729441652571,6.2588,159.78,159.69,22.6394]
[1729441652876,23.776884,159.77,159.69,22.6394]
[1729441654478,6.2607,159.73,159.65,22.6496]
[1729441654686,6.2606,159.73,159.65,22.6496]
[1729441654983,23.776884,159.72,159.65,22.6496]
[1729441656361,30.037984,159.72,159.65,22.6496]
[1729441660385,23.776884,159.72,159.65,22.6496]
[1729441660564,23.776884,159.73,159.65,22.6496]
[1729441660964,6.4786691,159.76,159.66,20.0]
[1729441662786,34.87527568,159.8,159.66,20.0]
[1729441663479,34.87527568,159.8,159.67,22.8044]
[1729441663886,23.776884,159.79,159.68,20.0]
[1729441664688,13.48447568,159.8,159.68,20.0]
[1729441667859,23.776884,159.79,159.68,20.0]
[1729441668785,30.035384,159.79,159.68,20.0]
[1729441669170,6.2597,159.76,159.67,22.8044]
[1729441669486,23.776884,159.75,159.67,22.8044]
[1729441669673,30.036884,159.75,159.67,22.8044]
[1729441671478,23.776884,159.77,159.67,22.8044]
[1729441671783,23.776884,159.77,159.68,20.0]
[1729441672688,23.776884,159.77,159.67,22.8044]
[1729441672870,23.776884,159.77,159.68,20.0]
[1729441679089,30.035884,159.77,159.68,20.0]
[1729441679789,30.035884,159.77,159.67,22.8044]
[1729441680472,23.776884,159.74,159.67,22.8044]
[1729441680871,6.2607,159.73,159.63,22.8044]
[1729441681077,23.776884,159.72,159.63,22.8044]
[1729441682592,23.776884,159.76,159.64,20.0]
[1729441682898,30.036284,159.76,159.64,20.0]
[1729441692808,30.035884,159.77,159.64,20.0]
[1729441693106,23.776884,159.77,159.64,20.0]
[1729441693609,23.776884,159.77,159.66,20.0]
[1729441694804,19.74227568,159.8,159.66,20.0]
[1729441696289,23.776884,159.79,159.66,20.0]
[1729441698186,13.48447568,159.8,159.68,20.0]
[1729441703896,30.035384,159.79,159.68,20.0]
[1729441704091,6.2586,159.78,159.68,20.0]
[1729441704291,23.776884,159.77,159.68,20.0]
[1729441709288,23.776884,159.77,159.67,21.4468]
[1729441709493,46.162484,159.77,159.67,21.4468]
[1729441709907,23.776884,159.78,159.67,21.4468]
[1729441710502,23.776884,159.77,159.67,21.4468]
[1729441710697,23.776884,159.77,159.68,20.0]
[1729441717200,23.776884,159.77,159.67,21.4468]
[1729441717413,23.776884,159.77,159.68,20.0]
[1729441722327,23.776884,159.77,159.67,21.4468]
[1729441722512,23.776884,159.74,159.67,21.4468]
[1729441723121,6.2602,159.74,159.67,21.4468]
[1729441723431,23.776884,159.75,159.67,21.4468]
[1729441723432,30.036684,159.75,159.67,21.4468]
[1729441733030,12.25025769,159.78,159.67,21.4468]
[1729441733031,6.46475769,159.78,159.67,21.4468]
[1729441733233,15.5494,159.8,159.68,20.0]
[1729441733416,6.2582,159.79,159.68,20.0]
[1729441734336,23.776884,159.78,159.68,20.0]
[1729441736237,6.2574,159.81,159.68,20.0]
[1729441736408,23.776884,159.81,159.68,20.0]
[1729441737031,23.776884,159.79,159.68,20.0]
[1729441740516,30.035184,159.79,159.68,20.0]
[1729441747343,23.776884,159.79,159.68,20.0]
[1729441747536,23.776884,159.77,159.67,21.4468]
[1729441747839,15.1966,159.79,159.67,21.4468]
[1729441747840,23.776884,159.74,159.67,21.4468]
[1729441760354,23.776884,159.75,159.67,21.4468]
[1729441763242,30.036784,159.75,159.67,21.4468]
[1729441767467,23.776884,159.75,159.67,21.4468]
[1729441767757,23.776884,159.76,159.67,21.4468]
[1729441768558,30.036184,159.77,159.67,21.4468]
[1729441768739,23.776884,159.75,159.67,21.4468]
[1729441784766,23.776884,159.77,159.67,21.4468]
[1729441784971,6.43404538,159.78,159.68,20.0]
[1729441785265,6.2575,159.81,159.68,20.0]
[1729441786247,23.776884,159.8,159.68,20.0]
[1729441786480,30.034684,159.8,159.68,20.0]
[1729441791349,30.034384,159.81,159.68,20.0]
[1729441791549,30.034384,159.81,159.7,20.0]
[1729441793183,23.776884,159.81,159.7,20.0]
[1729441793883,23.776884,159.81,159.7,29.15180394]
[1729441795376,23.776884,159.79,159.7,29.15180394]
[1729441795785,18.90143798,159.82,159.7,29.15180394]
[1729441796186,23.776884,159.81,159.7,29.15180394]
[1729441796898,23.776884,159.81,159.72,20.0]
[1729441800396,12.64413798,159.82,159.72,29.15180394]
[1729441800575,12.64413798,159.82,159.73,9.15180394]
[1729441800778,12.64413798,159.82,159.75,22.6913]
[1729441801187,12.64413798,159.82,159.75,31.84310394]
[1729441804290,12.64413798,159.82,159.75,22.6913]
[1729441807402,23.776884,159.81,159.72,20.0]
[1729441807578,6.2578,159.8,159.72,20.0]
[1729441808099,30.034284,159.81,159.72,20.0]
[1729441825310,12.64413798,159.82,159.72,20.0]
[1729441828999,12.64413798,159.82,159.72,28.64303432]
[1729441836729,23.776884,159.81,159.72,8.64303432]
[1729441837506,12.64413798,159.82,159.72,8.64303432]
[1729441838130,12.64413798,159.82,159.73,20.0]
[1729441838926,12.64413798,159.82,159.73,28.64303432]
[1729441839628,12.64413798,159.82,159.75,20.0]
[1729441845518,23.776884,159.86,159.75,20.0]
[1729441845721,30.032584,159.86,159.75,20.0]
[1729441848520,6.2559,159.85,159.75,20.0]
[1729441851529,23.776884,159.86,159.75,20.0]
[1729441851737,6.2564,159.84,159.75,20.0]
[1729441852122,23.776884,159.83,159.75,20.0]
[1729441853535,23.776884,159.81,159.74,21.7854]
[1729441855434,30.034484,159.81,159.74,21.7854]
[1729441855640,23.776884,159.81,159.74,21.7854]
[1729441857336,11.17613808,159.85,159.74,21.7854]
[1729441857636,23.776884,159.82,159.74,21.7854]
[1729441866251,11.17613808,159.85,159.74,21.7854]
[1729441866252,23.776884,159.84,159.74,21.7854]
[1729441866428,23.776884,159.84,159.75,20.0]
[1729441867444,11.17613808,159.85,159.75,20.0]
[1729441868743,17.43203808,159.85,159.75,20.0]
[1729441869563,23.776884,159.84,159.75,20.0]
[1729441870328,30.033384,159.84,159.75,20.0]
[1729441870527,6.2571,159.82,159.74,21.7854]
[1729441870855,23.776884,159.81,159.74,21.7854]
[1729441871431,6.2566,159.84,159.74,21.7854]
[1729441871631,23.776884,159.83,159.74,21.7854]
[1729441874353,5.7855,159.86,159.74,21.7854]
[1729441874579,5.7855,159.86,159.75,20.0]
[1729441874580,23.776884,159.85,159.75,20.0]
[1729441875063,34.75433134,159.87,159.75,20.0]
[1729441875857,34.75433134,159.87,159.74,21.7854]
[1729441875858,28.49923134,159.87,159.74,21.7854]
[1729441876360,23.776884,159.86,159.74,21.7854]
[1729441876571,23.776884,159.82,159.74,21.7854]
[1729441876735,30.033884,159.82,159.74,21.7854]
[1729441877232,23.776884,159.82,159.74,21.7854]
[1729441877449,6.2574,159.81,159.74,21.7854]
[1729441878242,23.776884,159.8,159.7,22.0601]
[1729441878450,23.776884,159.8,159.71,20.0]
[1729441878653,23.776884,159.8,159.7,22.0601]
[1729441879580,23.776884,159.82,159.7,30.70313432]
[1729441879943,23.776884,159.82,159.71,20.0]
[1729441883348,7.81152184,159.86,159.73,20.0]
[1729441883548,6.2559,159.85,159.73,20.0]
[1729441884565,23.776884,159.84,159.73,20.0]
[1729441885343,23.776884,159.82,159.73,20.0]
[1729441885664,23.776884,159.77,159.63,22.0235]
[1729441885872,23.776884,159.75,159.63,22.0235]
[1729441887081,30.0,159.74,159.64,20.0]
[1729441887274,23.776884,159.75,159.64,20.0]
[1729441890376,23.776884,159.77,159.64,20.0]
[1729441893861,23.776884,159.77,159.63,22.0235]
[1729441894988,23.776884,159.77,159.64,20.0]
[1729441895479,12.0435,159.8,159.65,23.776884]
[1729441895690,23.776884,159.79,159.66,20.0]
[1729441895984,5.7855,159.8,159.68,20.0]
[1729441896172,28.37298476,159.81,159.68,20.0]
[1729441896378,22.2378,159.81,159.68,20.0]
[1729441897377,23.776884,159.8,159.68,20.0]
[1729441903891,30.035884,159.77,159.67,22.0235]
[1729441905389,30.035884,159.77,159.68,20.0]
[1729441905692,23.776884,159.75,159.67,22.0235]
[1729441909696,39.931184,159.75,159.64,20.0]
[1729441909895,23.776884,159.73,159.64,20.0]
[1729441910269,23.776884,159.73,159.63,23.0049]
[1729441910672,30.0,159.72,159.63,23.0049]
[1729441911490,23.776884,159.71,159.63,23.0049]
[1729441913171,30.0,159.7,159.63,23.0049]
[1729441913373,23.776884,159.71,159.63,23.0049]
[1729441917570,23.776884,159.72,159.63,23.0049]
[1729441920486,23.776884,159.74,159.63,23.0049]
[1729441920685,23.776884,159.74,159.64,20.0]
[1729441921611,23.776884,159.75,159.64,20.0]
[1729441922396,22.87195862,159.79,159.65,22.4449]
[1729441922602,12.0425,159.82,159.67,22.4449]
[1729441922906,12.0426,159.82,159.68,20.0]
[1729441923205,5.7855,159.82,159.68,20.0]
[1729441923399,6.2574,159.81,159.68,20.0]
[1729441924288,6.2585,159.79,159.68,20.0]
[1729441924604,23.776884,159.78,159.68,20.0]
[1729441927812,30.035584,159.78,159.68,20.0]
[1729441929805,30.036584,159.76,159.67,22.4449]
[1729441930303,23.776884,159.76,159.67,22.4449]
[1729441930513,23.776884,159.74,159.67,22.4449]
[1729441930679,30.037084,159.74,159.67,22.4449]
[1729441932215,23.776884,159.76,159.67,22.4449]
[1729441934005,23.776884,159.76,159.68,20.0]
[1729441935113,23.776884,159.76,159.67,22.4449]
[1729441935290,30.037084,159.74,159.67,22.4449]
[1729441936811,23.776884,159.74,159.67,22.4449]
[1729441937303,23.776884,159.75,159.67,22.4449]
[1729441937811,23.776884,159.76,159.67,22.4449]
[1729441938111,23.776884,159.76,159.68,20.0]
[1729441941793,6.26,159.75,159.67,22.4449]
[1729441942213,23.776884,159.74,159.67,22.4449]
[1729441942696,23.776884,159.75,159.67,22.4449]
[1729441946327,23.776884,159.76,159.68,20.0]
[1729441946515,6.2583,159.79,159.68,20.0]
[1729441947104,6.2579,159.8,159.68,20.0]
[1729441947524,21.75,159.81,159.68,20.0]
[1729441948125,15.4926,159.81,159.68,20.0]
[1729441948328,6.2568,159.83,159.69,22.8514]
[1729441948505,6.2568,159.83,159.7,20.0]
[1729441948828,23.776884,159.82,159.7,20.0]
[1729441949025,15.4926,159.85,159.7,20.0]
[1729441949245,6.2563,159.84,159.7,20.0]
[1729441950226,23.776884,159.83,159.7,20.0]
[1729441952210,23.776884,159.83,159.69,16.589]
[1729441952404,23.776884,159.84,159.73,20.0]
[1729441955933,6.2567,159.83,159.73,20.0]
[1729441956303,23.776884,159.82,159.73,20.0]
[1729441957222,30.033884,159.82,159.72,16.589]
[1729441960723,23.776884,159.82,159.73,20.0]
[1729441960920,23.776884,159.83,159.73,20.0]
[1729441961125,6.2563,159.84,159.73,20.0]
[1729441962535,23.776884,159.83,159.73,20.0]
[1729441967412,23.776884,159.84,159.73,20.0]
[1729441970325,6.4353844,159.86,159.75,35.6071]
[1729441970326,23.776884,159.86,159.75,35.6071]
[1729441971036,11.95255629,159.88,159.75,35.6071]
[1729441971349,18.20725629,159.88,159.75,35.6071]
[1729441972335,23.776884,159.87,159.75,35.6071]
[1729441975450,30.031984,159.87,159.75,35.6071]
[1729441980537,23.776884,159.87,159.75,35.6071]
[1729441982739,30.031984,159.87,159.75,35.6071]
[1729441982936,23.776884,159.85,159.75,35.6071]
[1729441983234,23.776884,159.83,159.75,35.6071]
[1729441985041,30.033784,159.83,159.75,15.6071]
[1729441991267,23.776884,159.83,159.75,15.6071]
[1729441991444,23.776884,159.85,159.76,20.0]
[1729441993246,23.776884,159.86,159.76,20.0]
[1729441994955,23.776884,159.83,159.75,15.6071]
[1729441996270,30.033484,159.83,159.75,15.6071]
[1729441998275,23.776884,159.84,159.75,15.6071]
[1729441999778,30.033384,159.84,159.75,15.6071]
[1729442004851,23.776884,159.84,159.75,15.6071]
[1729442005055,30.033084,159.84,159.75,15.6071]
[1729442006472,23.776884,159.84,159.75,15.6071]
[1729442006677,23.776884,159.86,159.76,20.0]
[1729442011479,23.776884,159.87,159.76,20.0]
[1729442012486,23.776884,159.83,159.76,20.0]
[1729442015794,23.776884,159.83,159.75,15.6071]
[1729442016097,6.2571,159.82,159.75,15.6071]
[1729442016299,30.033584,159.83,159.75,15.6071]
[1729442022197,23.776884,159.83,159.75,15.6071]
[1729442022404,23.776884,159.81,159.75,15.6071]
[1729442022608,30.034384,159.81,159.75,15.6071]
[1729442026604,180.034384,159.81,159.75,5.6071]
[1729442029795,150.0,159.81,159.75,5.6071]
[1729442030101,150.0,159.81,159.76,20.0]
[1729442030609,150.0,159.81,159.75,5.6071]
[1729442030797,150.0,159.81,159.76,20.0]
[1729442035988,150.0,159.81,159.77,6.2513]
[1729442036217,150.0,159.81,159.78,20.0]
[1729442051224,150.0,159.81,159.77,6.2513]
[1729442051804,150.0,159.81,159.75,5.6071]
[1729442058129,150.0,159.81,159.73,6.5072]
[1729442058303,150.0,159.81,159.74,20.0]
[1729442062254,150.0,159.81,159.76,20.0]
[1729442069244,150.0,159.81,159.78,20.0]
[1729442086526,134.35683882,159.81,159.78,20.0]
[1729442087122,132.61927935,159.81,159.8,35.0134]
[1729442087745,132.61927935,159.81,159.8,58.790284]
[1729442087926,132.61927935,159.81,159.8,70.33149882]
[1729442088533,132.61927935,159.81,159.8,70.53149882]
[1729442089440,94.03116783,159.81,159.8,70.53149882]
[1729442089854,44.93116783,159.81,159.8,70.53149882]
[1729442090026,44.93116783,159.81,159.8,77.44308432]
[1729442090227,15.8614472,159.93,159.82,0.1]
[1729442090424,15.8614472,159.93,159.82,20.1]
[1729442090650,15.8614472,159.93,159.84,20.0]
[1729442091744,15.8614472,159.93,159.84,25.45361482]
[1729442092132,0.6205472,159.93,159.85,6.3215]
[1729442092347,0.6205472,159.93,159.86,20.0]
[1729442096437,0.6205472,159.93,159.86,25.53659013]
[1729442097142,0.6205472,159.93,159.86,25.63659013]
[1729442097862,0.6205472,159.93,159.9,20.0]
[1729442101863,0.6205472,159.93,159.92,20.0]
[1729442102555,1e-08,159.93,159.92,43.776884]
[1729442102859,1e-08,159.93,159.92,49.23049882]
[1729442103365,1e-08,159.93,159.92,49.33049882]
[1729442103571,1e-08,159.93,159.92,56.34208432]
[1729442103875,1e-08,159.93,159.92,57.59188094]
[1729442105767,1e-08,159.93,159.92,63.78438094]
[1729442105965,16.71363088,160.09,159.97,43.776884]
[1729442105966,16.3352,160.08,159.97,43.776884]
[1729442107308,16.3352,160.08,159.97,57.0809695]
[1729442107451,16.3352,160.08,160.0,20.0]
[1729442107648,16.3352,160.08,160.0,21.24948872]
[1729442107858,10.46713088,160.09,160.0,21.24948872]
[1729442108159,0.6205472,160.1,160.02,20.0]
[1729442108371,0.6205472,160.1,160.04,20.0]
[1729442109088,16.9557472,160.1,160.03,20.0]
[1729442109254,16.9557472,160.1,159.99,43.776884]
[1729442109451,16.9557472,160.1,159.99,43.876884]
[1729442110182,16.9557472,160.1,159.99,51.12180283]
[1729442111283,16.9557472,160.1,159.99,31.12180283]
[1729442113065,23.776884,160.09,159.98,6.1925]
[1729442113271,30.023384,160.09,159.95,7.34491883]
[1729442113484,30.023384,160.09,159.95,24.74491883]
[1729442113897,6.2469,160.08,159.95,24.74491883]
[1729442114067,6.2469,160.08,159.95,7.34491883]
[1729442116264,23.776884,160.09,159.95,7.34491883]
[1729442116472,30.023384,160.09,159.95,7.34491883]
[1729442117269,30.023384,160.09,159.96,23.776884]
[1729442118494,16.9557472,160.1,159.96,23.776884]
[1729442120870,16.9557472,160.1,159.97,23.776884]
[1729442124411,6.2466,160.09,159.97,23.776884]
[1729442124698,16.9557472,160.1,159.97,23.776884]
[1729442125073,23.2018472,160.1,159.97,23.776884]
[1729442125602,16.9557472,160.1,159.97,23.776884]
[1729442126503,16.9557472,160.1,159.97,7.34491883]
[1729442126683,0.6205472,160.1,160.0,22.4114]
[1729442126997,0.6205472,160.1,160.01,31.12180283]
[1729442127487,0.6205472,160.1,160.01,36.67541765]
[1729442128198,0.6205472,160.1,160.01,36.57541765]
[1729442130592,0.6205472,160.1,160.03,23.776884]
[1729442130801,0.6205472,160.1,160.03,37.18807876]
[1729442132382,0.6205472,160.1,160.04,20.0]
[1729442133793,0.6205472,160.1,160.06,20.0]
[1729442134190,0.6205472,160.1,160.06,36.0973]
[1729442136502,0.6205472,160.1,160.06,42.16357593]
[1729442136903,0.6205472,160.1,160.06,49.50849476]
[1729442137783,0.6205472,160.1,160.08,43.776884]
[1729442138000,0.6205472,160.1,160.09,7.34491883]
[1729442138203,0.6205472,160.1,160.09,27.34491883]
[1729442138509,0.6205472,160.1,160.09,51.12180283]
[1729442139592,0.6205472,160.1,160.09,27.34491883]
[1729442139790,0.6205472,160.1,160.07,20.0]
[1729442146090,0.6205472,160.1,160.06,20.0]
[1729442146284,0.6205472,160.1,160.05,13.65901883]
[1729442146718,0.6205472,160.1,160.05,7.34491883]
[1729442146887,0.6205472,160.1,160.0,12.68564297]
[1729442146888,0.6205472,160.1,160.0,18.98804297]
[1729442147215,6.8666472,160.1,160.0,6.51936704]
[1729442147394,16.4348,160.09,159.97,5.41861647]
[1729442147595,16.4348,160.09,159.98,0.83]
[1729442147992,16.4348,160.09,159.96,6.4024]
[1729442148307,16.4348,160.09,159.97,7.34491883]
[1729442148494,16.4348,160.09,159.98,20.1]
[1729442148696,16.4348,160.09,160.0,20.0]
[1729442148894,16.4348,160.09,160.01,7.34491883]
[1729442149194,16.4348,160.09,160.02,20.0]
[1729442157596,0.6205472,160.1,160.02,20.0]
[1729442169727,0.6205472,160.1,160.0,20.0]
[1729442173532,0.6205472,160.1,159.99,20.0]
[1729442173838,21.7026,160.09,159.99,20.0]
[1729442175331,21.7026,160.09,159.98,20.0]
[1729442175332,30.023684,160.08,159.98,20.0]
[1729442175533,23.776884,160.08,159.97,15.6629]
[1729442176719,23.776884,160.08,159.98,20.0]
[1729442185633,21.7026,160.09,159.98,20.0]
[1729442185829,15.9171,160.09,159.99,23.776884]
[1729442186059,15.9171,160.09,160.0,20.0]
[1729442187429,0.6205472,160.1,160.02,20.0]
[1729442203767,0.6205472,160.1,160.01,6.0817]
[1729442204763,0.6205472,160.1,159.98,7.34491883]
[1729442204969,0.6205472,160.1,159.99,20.0]
[1729442207941,0.6205472,160.1,159.99,27.34491883]
[1729442208972,0.6205472,160.1,159.99,33.41119476]
[1729442209464,0.6205472,160.1,160.0,6.06627593]
[1729442209673,0.6205472,160.1,160.01,20.0]
[1729442226187,0.6205472,160.1,160.03,20.0]
[1729442240213,0.6205472,160.1,160.03,27.34491883]
[1729442240381,0.6205472,160.1,160.05,20.0]
[1729442240584,0.6205472,160.1,160.05,26.06627593]
[1729442240906,0.6205472,160.1,160.05,33.41119476]
[1729442241282,0.6205472,160.1,160.07,20.0]
[1729442246389,0.6205472,160.1,160.06,20.0]
[1729442250515,0.6205472,160.1,160.03,20.0]
[1729442251019,0.6205472,160.1,160.02,21.7661]
[1729442251596,0.6205472,160.1,160.03,23.776884]
[1729442252015,0.6205472,160.1,160.03,31.12180283]
[1729442252203,0.6205472,160.1,160.04,20.0]
[1729442252400,0.6205472,160.1,160.06,20.0]
[1729442254102,0.6205472,160.1,160.04,20.0]
[1729442262710,0.6205472,160.1,160.03,23.776884]
[1729442264727,0.6205472,160.1,160.04,20.0]
[1729442272631,0.6205472,160.1,160.05,23.776884]
[1729442272927,0.6205472,160.1,160.06,20.0]
[1729442277940,0.14323469,160.23,160.09,0.05676531]
[1729442278238,23.776884,160.21,160.09,0.05676531]
[1729442278437,42.61011869,160.21,160.07,0.05676531]
[1729442278614,8.01942484,160.2,160.1,6.2457]
[1729442278814,23.776884,160.19,160.1,6.2457]
[1729442279130,39.383284,160.19,160.07,0.05676531]
[1729442279327,6.2442,160.15,160.1,6.2459]